[Event "*** Titled Tuesday Blitz"]
[Site "Chess.com"]
[Date "2021.03.30"]
[Round "7"]
[White "RaphCamora"]
[Black "AEMEffi"]
[Result "1-0"]
[WhiteElo "2397"]
[BlackElo "2261"]
[TimeControl "180+1"]
[EndTime "11:19:09 PDT"]
[Termination "RaphCamora won by resignation"]

1. e4 {[%clk 0:02:59]} 1... d5 {[%clk 0:02:59.4]} 2. exd5 {[%clk 0:02:57]} 2...
Qxd5 {[%clk 0:02:59.5]} 3. Nc3 {[%clk 0:02:56.8]} 3... Qd6 {[%clk 0:03:00.1]} 4.
d4 {[%clk 0:02:56.3]} 4... Nf6 {[%clk 0:02:59.2]} 5. Nf3 {[%clk 0:02:56.2]} 5...
c6 {[%clk 0:02:57.6]} 6. Ne5 {[%clk 0:02:53.7]} 6... Be6 {[%clk 0:02:39.4]} 7.
f4 {[%clk 0:02:47.5]} 7... g6 {[%clk 0:02:37.4]} 8. Be2 {[%clk 0:02:41.7]} 8...
Bg7 {[%clk 0:02:36.8]} 9. O-O {[%clk 0:02:39.3]} 9... Nbd7 {[%clk 0:02:32.6]}
10. Be3 {[%clk 0:02:38.8]} 10... Nb6 {[%clk 0:02:32.4]} 11. Qd2 {[%clk
0:01:52.8]} 11... O-O-O {[%clk 0:02:05.9]} 12. a4 {[%clk 0:01:14.5]} 12... Nbd5
{[%clk 0:02:03.9]} 13. a5 {[%clk 0:01:14.1]} 13... Nxc3 {[%clk 0:01:46.6]} 14.
bxc3 {[%clk 0:01:13]} 14... Nd5 {[%clk 0:01:47]} 15. a6 {[%clk 0:01:08.2]} 15...
b6 {[%clk 0:01:40.4]} 16. Bf3 {[%clk 0:00:54.4]} 16... f6 {[%clk 0:01:29.8]} 17.
Nc4 {[%clk 0:00:52.3]} 17... Qc7 {[%clk 0:01:29.5]} 18. Rfe1 {[%clk 0:00:38.8]}
18... Rhe8 {[%clk 0:01:14.8]} 19. Nb2 {[%clk 0:00:33.2]} 19... Bf5 {[%clk
0:01:10.9]} 20. Nd3 {[%clk 0:00:30.2]} 20... e5 {[%clk 0:01:01.5]} 21. fxe5
{[%clk 0:00:30.1]} 21... fxe5 {[%clk 0:00:54.2]} 22. Bg5 {[%clk 0:00:20.2]}
22... e4 {[%clk 0:00:45.9]} 23. Bxd8 {[%clk 0:00:19.9]} 23... Qxd8 {[%clk
0:00:45.9]} 24. Be2 {[%clk 0:00:11.2]} 24... exd3 {[%clk 0:00:44.2]} 25. Bxd3
{[%clk 0:00:12.1]} 25... Rf8 {[%clk 0:00:32.9]} 26. Rf1 {[%clk 0:00:11.3]} 26...
Bxd3 {[%clk 0:00:30.6]} 27. cxd3 {[%clk 0:00:11.2]} 27... c5 {[%clk 0:00:27.1]}
28. Rxf8 {[%clk 0:00:10.2]} 28... Qxf8 {[%clk 0:00:26.7]} 29. Rf1 {[%clk
0:00:10.8]} 29... Qe7 {[%clk 0:00:26.7]} 30. Re1 {[%clk 0:00:10.6]} 30... Qd7
{[%clk 0:00:25.1]} 31. Kh1 {[%clk 0:00:04.8]} 31... cxd4 {[%clk 0:00:24.8]} 32.
c4 {[%clk 0:00:04.2]} 32... Ne3 {[%clk 0:00:24]} 33. Qf2 {[%clk 0:00:04]} 33...
Qf5 {[%clk 0:00:21]} 34. Qxf5+ {[%clk 0:00:03.7]} 34... gxf5 {[%clk 0:00:20.5]}
35. g3 {[%clk 0:00:03.8]} 35... Kd7 {[%clk 0:00:20.2]} 36. Kg1 {[%clk
0:00:04.2]} 36... Kd6 {[%clk 0:00:19.7]} 37. Kf2 {[%clk 0:00:04.8]} 37... Ke5
{[%clk 0:00:18.6]} 38. Kf3 {[%clk 0:00:04.8]} 38... Bf8 {[%clk 0:00:17.3]} 39.
Rb1 {[%clk 0:00:05.3]} 39... Bc5 {[%clk 0:00:16.7]} 40. h4 {[%clk 0:00:04.3]}
40... h5 {[%clk 0:00:15.9]} 41. Re1 {[%clk 0:00:04.4]} 41... Bb4 {[%clk
0:00:13.9]} 42. Re2 {[%clk 0:00:05]} 42... Bc3 {[%clk 0:00:13.6]} 43. Ra2 {[%clk
0:00:05.6]} 43... Nd1 {[%clk 0:00:12.6]} 44. Ra3 {[%clk 0:00:05.6]} 44... Nb2
{[%clk 0:00:11.9]} 45. Ke2 {[%clk 0:00:05.9]} 45... f4 {[%clk 0:00:11.8]} 46.
Rb3 {[%clk 0:00:06.4]} 46... fxg3 {[%clk 0:00:10.6]} 47. Rxb6 {[%clk 0:00:05.6]}
47... g2 {[%clk 0:00:09.3]} 48. Rg6 {[%clk 0:00:05.4]} 48... g1=Q {[%clk
0:00:08.1]} 49. Rxg1 {[%clk 0:00:05.4]} 49... Ba5 {[%clk 0:00:05.9]} 50. Rg5+
{[%clk 0:00:06.3]} 50... Kf4 {[%clk 0:00:04.9]} 51. Rxa5 {[%clk 0:00:07.2]}
51... Kg4 {[%clk 0:00:05]} 52. Rb5 {[%clk 0:00:07.7]} 52... Na4 {[%clk 0:00:05]}
53. Rb7 {[%clk 0:00:08.6]} 53... Nc5 {[%clk 0:00:05.1]} 54. Rxa7 {[%clk
0:00:07.4]} 54... Kxh4 {[%clk 0:00:06]} 55. Ra8 {[%clk 0:00:07.5]} 55... Kg3
{[%clk 0:00:06.3]} 56. a7 {[%clk 0:00:07.2]} 1-0

[Event "*** Titled Tuesday Blitz"]
[Site "Chess.com"]
[Date "2021.03.30"]
[Round "7"]
[White "Tpros"]
[Black "nrvisakh"]
[Result "0-1"]
[WhiteElo "2461"]
[BlackElo "2794"]
[TimeControl "180+1"]
[EndTime "11:19:11 PDT"]
[Termination "nrvisakh won on time"]

1. c4 {[%clk 0:03:00.9]} 1... g6 {[%clk 0:02:57.3]} 2. g3 {[%clk 0:02:58.8]}
2... Bg7 {[%clk 0:02:57.6]} 3. Bg2 {[%clk 0:02:59.7]} 3... c6 {[%clk 0:02:57]}
4. d3 {[%clk 0:03:00.2]} 4... Nf6 {[%clk 0:02:55.7]} 5. Nf3 {[%clk 0:02:50]}
5... O-O {[%clk 0:02:55.6]} 6. O-O {[%clk 0:02:49]} 6... d5 {[%clk 0:02:54.4]}
7. Nbd2 {[%clk 0:02:43.1]} 7... Na6 {[%clk 0:02:44]} 8. a3 {[%clk 0:02:41.9]}
8... Bg4 {[%clk 0:02:32.9]} 9. h3 {[%clk 0:02:35.1]} 9... Bxf3 {[%clk
0:02:32.6]} 10. Bxf3 {[%clk 0:02:36]} 10... e5 {[%clk 0:02:30.6]} 11. Rb1 {[%clk
0:02:28.2]} 11... Re8 {[%clk 0:02:20.6]} 12. cxd5 {[%clk 0:02:22.6]} 12... cxd5
{[%clk 0:02:19.6]} 13. Bg2 {[%clk 0:02:20]} 13... Rc8 {[%clk 0:02:07.5]} 14. Nf3
{[%clk 0:02:09.9]} 14... Qe7 {[%clk 0:01:34.9]} 15. Qa4 {[%clk 0:01:40.8]} 15...
Nc5 {[%clk 0:01:28.8]} 16. Qxa7 {[%clk 0:01:32.3]} 16... e4 {[%clk 0:01:26.4]}
17. dxe4 {[%clk 0:01:31.2]} 17... dxe4 {[%clk 0:01:15.4]} 18. Nd4 {[%clk
0:01:30.6]} 18... Nd5 {[%clk 0:01:15.7]} 19. b4 {[%clk 0:00:58.3]} 19... Ra8
{[%clk 0:01:11.4]} 20. Qxc5 {[%clk 0:00:56.9]} 20... Qxc5 {[%clk 0:01:11.1]} 21.
bxc5 {[%clk 0:00:57.8]} 21... Bxd4 {[%clk 0:01:06.3]} 22. Rxb7 {[%clk
0:00:57.3]} 22... Bxc5 {[%clk 0:01:05.7]} 23. Rb5 {[%clk 0:00:54.5]} 23... Rac8
{[%clk 0:01:04.9]} 24. Bh6 {[%clk 0:00:42.8]} 24... Nc3 {[%clk 0:01:04.2]} 25.
Rb2 {[%clk 0:00:38.3]} 25... e3 {[%clk 0:00:59.4]} 26. Bxe3 {[%clk 0:00:31.7]}
26... Bxe3 {[%clk 0:00:58.2]} 27. fxe3 {[%clk 0:00:32.6]} 27... Rxe3 {[%clk
0:00:58.7]} 28. Kf2 {[%clk 0:00:30.8]} 28... Re5 {[%clk 0:00:54.2]} 29. Bf3
{[%clk 0:00:26.7]} 29... Ra5 {[%clk 0:00:50.5]} 30. Rb3 {[%clk 0:00:25.6]} 30...
Nb5 {[%clk 0:00:50]} 31. Ra1 {[%clk 0:00:22.8]} 31... Rc2 {[%clk 0:00:49.2]} 32.
a4 {[%clk 0:00:17.3]} 32... Nd4 {[%clk 0:00:48.1]} 33. Rd3 {[%clk 0:00:16.6]}
33... Ne6 {[%clk 0:00:42.6]} 34. h4 {[%clk 0:00:13.6]} 34... Kg7 {[%clk
0:00:41.9]} 35. Raa3 {[%clk 0:00:09.1]} 35... Rcc5 {[%clk 0:00:39]} 36. Re3
{[%clk 0:00:07.1]} 36... h5 {[%clk 0:00:36.5]} 37. Re4 {[%clk 0:00:07]} 37...
Rf5 {[%clk 0:00:35.2]} 38. Rb4 {[%clk 0:00:05.3]} 38... Rfc5 {[%clk 0:00:34.2]}
39. Kg2 {[%clk 0:00:04.6]} 39... Re5 {[%clk 0:00:33.3]} 40. Kf2 {[%clk
0:00:03.6]} 40... Kf6 {[%clk 0:00:32.2]} 41. Kg2 {[%clk 0:00:02.8]} 41... Rec5
{[%clk 0:00:30.1]} 42. Kf2 {[%clk 0:00:03.7]} 42... Ke7 {[%clk 0:00:27.5]} 43.
Kg2 {[%clk 0:00:04.6]} 43... Nc7 {[%clk 0:00:24.7]} 44. Kf2 {[%clk 0:00:05.5]}
44... Ra7 {[%clk 0:00:23.7]} 45. Rb7 {[%clk 0:00:05]} 45... Rxb7 {[%clk
0:00:23.5]} 46. Bxb7 {[%clk 0:00:05.9]} 46... Ra5 {[%clk 0:00:24.1]} 47. Bf3
{[%clk 0:00:05.4]} 47... Ne6 {[%clk 0:00:22.4]} 48. Ke3 {[%clk 0:00:04.9]} 48...
Kd6 {[%clk 0:00:22.1]} 49. Kd2 {[%clk 0:00:02.7]} 49... Nc5 {[%clk 0:00:21.6]}
50. Ke3 {[%clk 0:00:03.1]} 50... Ra7 {[%clk 0:00:21.1]} 51. Kd4 {[%clk
0:00:01.7]} 51... Nxa4 {[%clk 0:00:19.7]} 52. e4 {[%clk 0:00:01.4]} 52... Ke7
{[%clk 0:00:18.8]} 53. g4 {[%clk 0:00:01.5]} 53... Rd7+ {[%clk 0:00:19.2]} 54.
Ke3 {[%clk 0:00:01.4]} 54... Nb6 {[%clk 0:00:18.6]} 0-1

[Event "*** Titled Tuesday Blitz"]
[Site "Chess.com"]
[Date "2021.03.30"]
[Round "7"]
[White "BogdanDeac"]
[Black "Balla_Tamas"]
[Result "1-0"]
[WhiteElo "3011"]
[BlackElo "2543"]
[TimeControl "180+1"]
[EndTime "11:19:13 PDT"]
[Termination "BogdanDeac won by resignation"]

1. b3 {[%clk 0:03:00.9]} 1... e5 {[%clk 0:02:57.8]} 2. Bb2 {[%clk 0:03:00.9]}
2... Nc6 {[%clk 0:02:47.5]} 3. e3 {[%clk 0:03:00.6]} 3... a6 {[%clk 0:02:47.1]}
4. Nf3 {[%clk 0:02:57.7]} 4... d6 {[%clk 0:02:37.9]} 5. d4 {[%clk 0:02:38]} 5...
e4 {[%clk 0:02:32.6]} 6. d5 {[%clk 0:02:37.6]} 6... Nb4 {[%clk 0:01:22.3]} 7.
Nfd2 {[%clk 0:02:16.3]} 7... Nxd5 {[%clk 0:01:21.2]} 8. Nxe4 {[%clk 0:02:14.7]}
8... Ngf6 {[%clk 0:01:17.9]} 9. Bc4 {[%clk 0:01:30.1]} 9... Nxe4 {[%clk
0:01:12.9]} 10. Qxd5 {[%clk 0:01:24.3]} 10... Qe7 {[%clk 0:01:12.9]} 11. Bd3
{[%clk 0:01:19]} 11... Nf6 {[%clk 0:01:11]} 12. Qg5 {[%clk 0:01:19]} 12... Ng4
{[%clk 0:00:59.3]} 13. Qf4 {[%clk 0:01:09.1]} 13... Ne5 {[%clk 0:00:56.8]} 14.
Nc3 {[%clk 0:01:07.8]} 14... Nxd3+ {[%clk 0:00:54.5]} 15. cxd3 {[%clk
0:01:07.6]} 15... Be6 {[%clk 0:00:55.1]} 16. O-O {[%clk 0:01:02.8]} 16... Qd7
{[%clk 0:00:50.5]} 17. Ne4 {[%clk 0:00:58.1]} 17... d5 {[%clk 0:00:48.5]} 18.
Ng5 {[%clk 0:00:39.6]} 18... Bd6 {[%clk 0:00:46.5]} 19. Qh4 {[%clk 0:00:39.8]}
19... f6 {[%clk 0:00:39.2]} 20. Qh5+ {[%clk 0:00:29.7]} 20... Bf7 {[%clk
0:00:31]} 21. Nxf7 {[%clk 0:00:29.7]} 21... Qxf7 {[%clk 0:00:30.7]} 22. Qf3
{[%clk 0:00:30]} 22... O-O {[%clk 0:00:30]} 23. Rac1 {[%clk 0:00:29.5]} 23... c6
{[%clk 0:00:30.1]} 24. Bd4 {[%clk 0:00:28]} 24... Rfe8 {[%clk 0:00:28.7]} 25.
Bc5 {[%clk 0:00:28]} 25... Bc7 {[%clk 0:00:28.3]} 26. b4 {[%clk 0:00:26.2]}
26... Re6 {[%clk 0:00:27.7]} 27. a4 {[%clk 0:00:25.9]} 27... f5 {[%clk
0:00:27.3]} 28. b5 {[%clk 0:00:22.9]} 28... axb5 {[%clk 0:00:26.6]} 29. axb5
{[%clk 0:00:22.9]} 29... f4 {[%clk 0:00:25.4]} 30. bxc6 {[%clk 0:00:20.4]} 30...
bxc6 {[%clk 0:00:24.9]} 31. e4 {[%clk 0:00:12.8]} 31... dxe4 {[%clk 0:00:23.1]}
32. dxe4 {[%clk 0:00:13.7]} 32... Rae8 {[%clk 0:00:23.1]} 33. Rfe1 {[%clk
0:00:13.9]} 33... Qg6 {[%clk 0:00:22.8]} 34. Qb3 {[%clk 0:00:14.2]} 34... h6
{[%clk 0:00:20.7]} 35. f3 {[%clk 0:00:14.2]} 35... Kh7 {[%clk 0:00:19.3]} 36.
Red1 {[%clk 0:00:14.3]} 36... h5 {[%clk 0:00:18.6]} 37. Rd7 {[%clk 0:00:11.8]}
37... Be5 {[%clk 0:00:17.6]} 38. Qd3 {[%clk 0:00:12]} 38... h4 {[%clk
0:00:16.1]} 39. h3 {[%clk 0:00:12.5]} 39... Bf6 {[%clk 0:00:15.2]} 40. Bf2
{[%clk 0:00:10.2]} 40... Qg5 {[%clk 0:00:13.5]} 41. Rc5 {[%clk 0:00:10.1]} 41...
Qg6 {[%clk 0:00:13]} 42. Qc4 {[%clk 0:00:09.1]} 42... Be5 {[%clk 0:00:11.3]} 43.
Bd4 {[%clk 0:00:07.4]} 43... Bxd4+ {[%clk 0:00:09.6]} 44. Qxd4 {[%clk
0:00:08.3]} 44... Rf6 {[%clk 0:00:08.9]} 45. Qf2 {[%clk 0:00:06.4]} 45... Qg3
{[%clk 0:00:08.5]} 46. Rh5+ {[%clk 0:00:05.9]} 46... Kg6 {[%clk 0:00:08.6]} 47.
Rxh4 {[%clk 0:00:06.2]} 47... Qxf2+ {[%clk 0:00:08.8]} 48. Kxf2 {[%clk
0:00:06.3]} 48... Rg8 {[%clk 0:00:07]} 49. Rg4+ {[%clk 0:00:06.6]} 49... Kh6
{[%clk 0:00:07.1]} 50. h4 {[%clk 0:00:07.2]} 50... g6 {[%clk 0:00:07.1]} 51. Rg5
{[%clk 0:00:07.1]} 51... Rc8 {[%clk 0:00:06.5]} 52. Re5 {[%clk 0:00:06.2]} 52...
Rff8 {[%clk 0:00:01.9]} 53. Rc5 {[%clk 0:00:06]} 53... Rf6 {[%clk 0:00:01.8]}
54. Re7 {[%clk 0:00:05.6]} 54... Re6 {[%clk 0:00:02.7]} 55. Rxe6 {[%clk
0:00:04.9]} 1-0

[Event "*** Titled Tuesday Blitz"]
[Site "Chess.com"]
[Date "2021.03.30"]
[Round "7"]
[White "hypert"]
[Black "Loy_Konstantin"]
[Result "1/2-1/2"]
[WhiteElo "2530"]
[BlackElo "2343"]
[TimeControl "180+1"]
[EndTime "11:19:13 PDT"]
[Termination "Game drawn by repetition"]

1. Nc3 {[%clk 0:03:00.9]} 1... c5 {[%clk 0:02:58.1]} 2. d3 {[%clk 0:03:00.9]}
2... g6 {[%clk 0:02:57.9]} 3. g3 {[%clk 0:03:01.2]} 3... Bg7 {[%clk 0:02:58.3]}
4. Bg2 {[%clk 0:03:01.7]} 4... Nc6 {[%clk 0:02:58.9]} 5. h4 {[%clk 0:03:01.9]}
5... h5 {[%clk 0:02:56.6]} 6. Nh3 {[%clk 0:03:00]} 6... Nh6 {[%clk 0:02:55.6]}
7. Be3 {[%clk 0:02:58]} 7... d6 {[%clk 0:02:52.2]} 8. Bd2 {[%clk 0:02:55]} 8...
Rb8 {[%clk 0:02:46.9]} 9. Qc1 {[%clk 0:02:51.8]} 9... Nf5 {[%clk 0:02:44.6]} 10.
Nf4 {[%clk 0:02:46]} 10... Bd7 {[%clk 0:02:41.4]} 11. a4 {[%clk 0:02:40.1]}
11... a6 {[%clk 0:02:30]} 12. Nd1 {[%clk 0:02:29.6]} 12... b5 {[%clk 0:02:24.1]}
13. axb5 {[%clk 0:02:28.9]} 13... axb5 {[%clk 0:02:25]} 14. c3 {[%clk
0:02:28.1]} 14... b4 {[%clk 0:02:22]} 15. e4 {[%clk 0:02:27.9]} 15... Nh6 {[%clk
0:02:15.5]} 16. Nd5 {[%clk 0:02:27.2]} 16... bxc3 {[%clk 0:01:48.9]} 17. bxc3
{[%clk 0:02:26.2]} 17... Ng4 {[%clk 0:01:45.5]} 18. N1e3 {[%clk 0:02:18.6]}
18... Nxe3 {[%clk 0:01:44.7]} 19. Nxe3 {[%clk 0:02:16.8]} 19... O-O {[%clk
0:01:44]} 20. O-O {[%clk 0:02:16.3]} 20... Na5 {[%clk 0:01:22.2]} 21. Qc2 {[%clk
0:02:03.4]} 21... Nb3 {[%clk 0:01:20.8]} 22. Ra2 {[%clk 0:02:03.9]} 22... Nxd2
{[%clk 0:01:20.8]} 23. Qxd2 {[%clk 0:02:04.8]} 23... Be6 {[%clk 0:01:19.3]} 24.
Nd5 {[%clk 0:01:55.6]} 24... Bxd5 {[%clk 0:01:18.6]} 25. exd5 {[%clk 0:01:56.5]}
25... Qb6 {[%clk 0:01:15.4]} 26. c4 {[%clk 0:01:54.7]} 26... Qb4 {[%clk
0:01:06.4]} 27. Qe2 {[%clk 0:01:54.6]} 27... Bf6 {[%clk 0:01:05.9]} 28. Bf3
{[%clk 0:01:54.8]} 28... Qc3 {[%clk 0:01:01.5]} 29. Rc2 {[%clk 0:01:51.9]} 29...
Qd4 {[%clk 0:00:59.8]} 30. Kg2 {[%clk 0:01:47.7]} 30... Rb3 {[%clk 0:00:59.5]}
31. Be4 {[%clk 0:01:47.1]} 31... Rfb8 {[%clk 0:00:58.9]} 32. g4 {[%clk
0:01:43.3]} 32... hxg4 {[%clk 0:00:53.4]} 33. Rh1 {[%clk 0:01:30.5]} 33... Rb2
{[%clk 0:00:47.7]} 34. Rhc1 {[%clk 0:01:12.7]} 34... Rxc2 {[%clk 0:00:46.7]} 35.
Rxc2 {[%clk 0:01:12.8]} 35... Bxh4 {[%clk 0:00:27.2]} 36. Qxg4 {[%clk
0:01:12.5]} 36... Bf6 {[%clk 0:00:26.9]} 37. Qf3 {[%clk 0:01:05]} 37... Rb2
{[%clk 0:00:26]} 38. Rxb2 {[%clk 0:01:04.4]} 38... Qxb2 {[%clk 0:00:26.9]} 39.
Qg4 {[%clk 0:01:03.6]} 39... Kg7 {[%clk 0:00:26.3]} 40. Qf3 {[%clk 0:01:02.8]}
40... Qe5 {[%clk 0:00:26.1]} 41. Qg3 {[%clk 0:01:02.2]} 41... Qxg3+ {[%clk
0:00:24.3]} 42. Kxg3 {[%clk 0:01:02.6]} 42... Bd4 {[%clk 0:00:23.4]} 43. Bg2
{[%clk 0:00:59.3]} 43... f5 {[%clk 0:00:23.4]} 44. f4 {[%clk 0:00:59]} 44... Kf6
{[%clk 0:00:22.8]} 45. Kf3 {[%clk 0:00:58.9]} 45... g5 {[%clk 0:00:22.3]} 46.
fxg5+ {[%clk 0:00:59.1]} 46... Kxg5 {[%clk 0:00:23.2]} 47. Bf1 {[%clk 0:00:59]}
47... Kf6 {[%clk 0:00:21.7]} 48. Bh3 {[%clk 0:00:59.1]} 48... Ke5 {[%clk
0:00:21.7]} 49. Bf1 {[%clk 0:00:56.5]} 49... Bb2 {[%clk 0:00:21.8]} 50. Bh3
{[%clk 0:00:56.4]} 50... Bc1 {[%clk 0:00:22.1]} 51. Bf1 {[%clk 0:00:55]} 51...
Kd4 {[%clk 0:00:21.5]} 52. Be2 {[%clk 0:00:54.1]} 52... Ke5 {[%clk 0:00:14.8]}
53. Bf1 {[%clk 0:00:53.9]} 53... e6 {[%clk 0:00:15.1]} 54. dxe6 {[%clk 0:00:52]}
54... Kxe6 {[%clk 0:00:16]} 55. Bh3 {[%clk 0:00:51]} 55... Ke5 {[%clk
0:00:16.1]} 56. Bf1 {[%clk 0:00:50.8]} 56... Kd4 {[%clk 0:00:15.4]} 57. Be2
{[%clk 0:00:50.6]} 57... Bg5 {[%clk 0:00:14.8]} 58. Bf1 {[%clk 0:00:50.4]} 58...
Kc3 {[%clk 0:00:14.7]} 59. Be2 {[%clk 0:00:50.3]} 59... Kd2 {[%clk 0:00:14.8]}
60. Bf1 {[%clk 0:00:50.1]} 60... Ke1 {[%clk 0:00:14.6]} 61. Bh3 {[%clk
0:00:50.1]} 61... Kd2 {[%clk 0:00:09.5]} 62. Bxf5 {[%clk 0:00:50]} 62... Bf6
{[%clk 0:00:09.8]} 63. Ke4 {[%clk 0:00:50.1]} 63... Be5 {[%clk 0:00:09.9]} 64.
Kd5 {[%clk 0:00:50.2]} 64... Kc3 {[%clk 0:00:09.8]} 65. Be4 {[%clk 0:00:48.8]}
65... Kd2 {[%clk 0:00:09.8]} 66. Bh7 {[%clk 0:00:43.7]} 66... Ke3 {[%clk
0:00:09.9]} 67. Bg6 {[%clk 0:00:43.8]} 67... Kf4 {[%clk 0:00:09.9]} 68. Bh7
{[%clk 0:00:41.6]} 68... Ke3 {[%clk 0:00:10.2]} 69. Bg6 {[%clk 0:00:39.2]} 69...
Kf4 {[%clk 0:00:10.4]} 70. Be4 {[%clk 0:00:28.6]} 70... Ke3 {[%clk 0:00:10.4]}
71. Bg6 {[%clk 0:00:28.6]} 1/2-1/2

[Event "*** Titled Tuesday Blitz"]
[Site "Chess.com"]
[Date "2021.03.30"]
[Round "7"]
[White "Aslanov_Umid"]
[Black "bazar-wokzal"]
[Result "1-0"]
[WhiteElo "2430"]
[BlackElo "2558"]
[TimeControl "180+1"]
[EndTime "11:19:13 PDT"]
[Termination "Aslanov_Umid won by checkmate"]

1. e4 {[%clk 0:03:00.9]} 1... Nc6 {[%clk 0:02:59.4]} 2. Nf3 {[%clk 0:03:00.3]}
2... d5 {[%clk 0:02:59.4]} 3. exd5 {[%clk 0:03:01.2]} 3... Qxd5 {[%clk
0:03:00.1]} 4. Nc3 {[%clk 0:03:01.2]} 4... Qa5 {[%clk 0:03:00.8]} 5. Be2 {[%clk
0:03:01]} 5... Bg4 {[%clk 0:03:00.6]} 6. O-O {[%clk 0:03:01.2]} 6... O-O-O
{[%clk 0:03:00.9]} 7. h3 {[%clk 0:02:58]} 7... Bh5 {[%clk 0:03:00.7]} 8. g4
{[%clk 0:02:58.2]} 8... Bg6 {[%clk 0:03:00.4]} 9. a3 {[%clk 0:02:56.4]} 9... h5
{[%clk 0:02:59.5]} 10. g5 {[%clk 0:02:46.2]} 10... h4 {[%clk 0:02:59.8]} 11. d3
{[%clk 0:02:46]} 11... Qf5 {[%clk 0:02:52.2]} 12. Nh2 {[%clk 0:02:28.4]} 12...
e6 {[%clk 0:02:49.9]} 13. Bg4 {[%clk 0:02:09.9]} 13... Qc5 {[%clk 0:02:48.7]}
14. Be3 {[%clk 0:02:05]} 14... Qe7 {[%clk 0:02:43.2]} 15. f4 {[%clk 0:01:58.7]}
15... Qd7 {[%clk 0:02:31.9]} 16. Nf3 {[%clk 0:01:52.2]} 16... Nge7 {[%clk
0:02:31.7]} 17. Qe2 {[%clk 0:01:36.4]} 17... Nf5 {[%clk 0:02:31.4]} 18. Bxf5
{[%clk 0:01:29.1]} 18... Bxf5 {[%clk 0:02:32.3]} 19. Kh2 {[%clk 0:01:24.7]}
19... f6 {[%clk 0:02:32.2]} 20. Qf2 {[%clk 0:01:20.9]} 20... a6 {[%clk
0:02:30.8]} 21. b4 {[%clk 0:01:13.4]} 21... Ne7 {[%clk 0:02:24.2]} 22. b5 {[%clk
0:01:10.6]} 22... axb5 {[%clk 0:02:23.5]} 23. Rab1 {[%clk 0:01:11.1]} 23... c6
{[%clk 0:02:16.4]} 24. a4 {[%clk 0:01:10.6]} 24... b4 {[%clk 0:02:08.2]} 25.
Rxb4 {[%clk 0:01:04.5]} 25... Nd5 {[%clk 0:02:03.4]} 26. Nxd5 {[%clk 0:01:03]}
26... exd5 {[%clk 0:02:03.7]} 27. Rb6 {[%clk 0:00:48.5]} 27... Qd6 {[%clk
0:01:57.2]} 28. Rfb1 {[%clk 0:00:44.3]} 28... Rd7 {[%clk 0:01:55.3]} 29. a5
{[%clk 0:00:44.5]} 29... Be7 {[%clk 0:01:50.2]} 30. a6 {[%clk 0:00:42.8]} 30...
bxa6 {[%clk 0:00:57.4]} 31. Nd4 {[%clk 0:00:39.2]} 31... c5 {[%clk 0:00:21.7]}
32. Rxd6 {[%clk 0:00:36.9]} 32... cxd4 {[%clk 0:00:21.9]} 33. Rc6+ {[%clk
0:00:33.3]} 33... Rc7 {[%clk 0:00:18.9]} 34. Rxc7+ {[%clk 0:00:33.1]} 34... Kxc7
{[%clk 0:00:19.8]} 35. Bxd4 {[%clk 0:00:33.5]} 35... fxg5 {[%clk 0:00:19.8]} 36.
Bb6+ {[%clk 0:00:33]} 36... Kc6 {[%clk 0:00:18.8]} 37. Ba7 {[%clk 0:00:27.3]}
37... Bd6 {[%clk 0:00:16.7]} 38. Rb6+ {[%clk 0:00:16.1]} 38... Kd7 {[%clk
0:00:16.9]} 39. Rb7+ {[%clk 0:00:16.4]} 39... Ke6 {[%clk 0:00:12.9]} 40. Qe2+
{[%clk 0:00:13.9]} 40... Kf6 {[%clk 0:00:12.5]} 41. Bd4+ {[%clk 0:00:12.4]}
41... Kg6 {[%clk 0:00:11]} 42. Rxg7+ {[%clk 0:00:12.9]} 42... Kh6 {[%clk
0:00:11.3]} 43. Be5 {[%clk 0:00:09.2]} 43... gxf4 {[%clk 0:00:06.5]} 44. Bxd6
{[%clk 0:00:04.7]} 44... Kxg7 {[%clk 0:00:07.4]} 45. Qe5+ {[%clk 0:00:05.2]}
45... Kg6 {[%clk 0:00:08.3]} 46. Qxh8 {[%clk 0:00:04.1]} 46... f3 {[%clk
0:00:08.1]} 47. Qxh4 {[%clk 0:00:04.6]} 47... Kf7 {[%clk 0:00:09]} 48. Qe7+
{[%clk 0:00:02.4]} 48... Kg6 {[%clk 0:00:09.2]} 49. Be5 {[%clk 0:00:03]} 49...
Kh5 {[%clk 0:00:10.1]} 50. Qf6 {[%clk 0:00:03.4]} 50... Bg6 {[%clk 0:00:10.2]}
51. Bf4 {[%clk 0:00:02.9]} 51... Bf5 {[%clk 0:00:08.9]} 52. Qg5# {[%clk
0:00:03.8]} 1-0